[Event "DVM U10 2024"]
[Site "Duesseldorf"]
[Date "2024.12.27"]
[Round "2"]
[White "White, William"]
[Black "Breaz, Albert"]
[Result "0-1"]
[ECO "C55"]
[WhiteElo "1750"]
[BlackElo "1494"]
[Annotator "NA RC"]
[PlyCount "84"]
[EventDate "2024.12.23"]
[EventType "team-tourn"]
[EventRounds "7"]
[EventCountry "GER"]
[SourceTitle "playchess.com"]
[Source "ChessBase"]
[SourceQuality "1"]
[TimeControl "3300+5"]

1. e4 {[%emt 0:00:02]} e5 {[%emt 0:00:12]} 2. Nf3 {[%emt 0:00:04]} Nc6 {[%emt 0:00:07]} 3. Bc4 {[%emt 0:00:12]} Nf6 {[%emt 0:00:12]} 4. Nc3 {[%emt 0:00:12]} Nxe4 {[%emt 0:00:09]} 5. Nxe4 {[%emt 0:00:05]} d5 {[%emt 0:00:08]} 6. Bd3 {[%emt 0:00:04]} dxe4 {[%emt 0:00:09]} 7. Bxe4 {[%emt 0:00:05]} Nd4 {[%emt 0:00:50]} 8. d3 {[%emt 0:01:35]} c6 {[%emt 0:00:31]} 9. O-O {[%emt 0:03:50]} Bg4 {[%emt 0:01:25]} 10. h3 {[%emt 0:02:38]} Nxf3+ {[%emt 0:00:30]} 11. Bxf3 {[%emt 0:00:07]} Bxf3 {[%emt 0:00:18]} 12. Qxf3 {[%emt 0:00:06]} Bd6 {[%emt 0:00:10]} 13. Qg4 {[%emt 0:00:57]} O-O {[%emt 0:02:13]} 14. Bd2 {[%emt 0:04:22]} f5 {[%emt 0:02:17]} 15. Qc4+ {[%emt 0:00:15]} Kh8 {[%emt 0:00:19]} 16. Rfe1 {[%emt 0:00:33]} Qb6 {[%emt 0:00:47]} 17. Bc3 {[%emt 0:00:42]} e4 {[%emt 0:01:45]} 18. dxe4 {[%emt 0:02:06]} fxe4 {[%emt 0:00:11]} 19. Bd4 {[%emt 0:01:14]} Qc7 {[%emt 0:01:35]} 20. Rxe4 {[%emt 0:00:34]} b5 {[%emt 0:01:29]} 21. Qc3 {[%emt 0:01:07]} c5 {[%emt 0:00:31]} 22. Bxg7+ {[%emt 0:00:27]} Qxg7 {[%emt 0:00:12]} 23. Qxg7+ {[%emt 0:01:34]} Kxg7 {[%emt 0:01:07]} 24. Rd1 {[%emt 0:00:04]} Rad8 {[%emt 0:00:14]} 25. Re6 {[%emt 0:00:32]} Bh2+ {[%emt 0:00:07]} 26. Kxh2 {[%emt 0:00:35]} Rxd1 {[%emt 0:00:31]} 27. Re7+ {[%emt 0:00:48]} Rf7 {[%emt 0:00:08]} 28. Re5 {[%emt 0:00:05]} Rxf2 {[%emt 0:00:34]} 29. Rxc5 {[%emt 0:00:08]} Rdd2 {[%emt 0:00:39]} 30. Rxb5 {[%emt 0:00:08]} Rxg2+ {[%emt 0:00:07]} 31. Kh1 {[%emt 0:00:05]} Kf6 {[%emt 0:00:41]} 32. Ra5 {[%emt 0:00:15]} Rge2 {[%emt 0:00:07]} 33. Ra6+ {[%emt 0:00:10]} Re6 {[%emt 0:00:17]} 34. Rxe6+ {[%emt 0:00:09]} Kxe6 {[%emt 0:00:09]} 35. Kg1 {[%emt 0:00:02]} Rxc2 {[%emt 0:00:10]} 36. Kf1 {[%emt 0:00:04]} Rxb2 {[%emt 0:00:07]} 37. a4 {[%emt 0:00:04]} Ke5 {[%emt 0:00:14]} 38. a5 {[%emt 0:00:09]} Ke4 {[%emt 0:00:04]} 39. a6 {[%emt 0:00:05]} Ke3 {[%emt 0:00:05]} 40. Kg1 {[%emt 0:00:05]} Kf3 {[%emt 0:00:07]} 41. Kh1 {[%emt 0:00:03]} Kg3 {[%emt 0:00:13]} 42. Kg1 {[%emt 0:00:08]} Rb1# {[%emt 0:00:08]} 0-1

[Event "DVM U10 2024"]
[Site "Duesseldorf"]
[Date "2024.12.27"]
[Round "2"]
[White "Barsov, Mikhail"]
[Black "El-Issa, Erik"]
[Result "1-0"]
[ECO "A23"]
[WhiteElo "1737"]
[BlackElo "1530"]
[Annotator "NA RC"]
[PlyCount "111"]
[EventDate "2024.12.23"]
[EventType "team-tourn"]
[EventRounds "7"]
[EventCountry "GER"]
[SourceTitle "playchess.com"]
[Source "ChessBase"]
[SourceQuality "1"]
[TimeControl "3300+5"]

1. c4 {[%emt 0:01:12]} e5 {[%emt 0:00:19]} 2. g3 {[%emt 0:00:04]} c6 {[%emt 0:00:16]} 3. Nf3 {[%emt 0:00:38]} e4 {[%emt 0:00:14]} 4. Nd4 {[%emt 0:00:17]} d5 {[%emt 0:00:09]} 5. cxd5 {[%emt 0:00:05]} cxd5 {[%emt 0:00:07]} 6. d3 {[%emt 0:01:18]} Nf6 {[%emt 0:01:35]} 7. Bg2 {[%emt 0:01:31]} Bc5 {[%emt 0:00:19]} 8. Nb3 {[%emt 0:03:23]} Bb6 {[%emt 0:00:34]} 9. O-O {[%emt 0:01:58]} O-O {[%emt 0:00:33]} 10. Nc3 {[%emt 0:01:16]} Bf5 {[%emt 0:01:24]} 11. dxe4 {[%emt 0:00:19]} dxe4 {[%emt 0:00:30]} 12. Bg5 {[%emt 0:01:15]} Re8 {[%emt 0:00:39]} 13. Qxd8 {[%emt 0:01:24]} Bxd8 {[%emt 0:00:17]} 14. Nd4 {[%emt 0:00:41]} Bg6 {[%emt 0:00:25]} 15. Ndb5 {[%emt 0:01:51]} Nbd7 {[%emt 0:00:59]} 16. Rfd1 {[%emt 0:02:26]} a6 {[%emt 0:02:36]} 17. Nd6 {[%emt 0:00:15]} Re6 {[%emt 0:00:35]} 18. Nxb7 {[%emt 0:01:23]} Bc7 {[%emt 0:00:28]} 19. Bh3 {[%emt 0:04:55]} Rb6 {[%emt 0:02:03]} 20. Bxd7 {[%emt 0:03:40]} Nxd7 {[%emt 0:00:16]} 21. Rxd7 {[%emt 0:00:11]} Rxb7 {[%emt 0:00:09]} 22. Nd5 {[%emt 0:00:19]} f6 {[%emt 0:00:58]} 23. Be3 {[%emt 0:02:35]} Rxb2 {[%emt 0:01:14]} 24. Rxc7 {[%emt 0:01:19]} Bf7 {[%emt 0:02:00]} 25. Ne7+ {[%emt 0:00:53]} Kf8 {[%emt 0:00:45]} 26. Nf5 {[%emt 0:04:51]} h6 {[%emt 0:02:38]} 27. Bc5+ {[%emt 0:04:03]} Kg8 {[%emt 0:00:20]} 28. Bd4 {[%emt 0:00:25]} Rxe2 {[%emt 0:01:03]} 29. Bxf6 {[%emt 0:05:09]} gxf6 {[%emt 0:00:22]} 30. Nxh6+ {[%emt 0:00:06]} Kg7 {[%emt 0:00:22]} 31. Nxf7 {[%emt 0:00:12]} Rf8 {[%emt 0:01:01]} 32. Nd6+ {[%emt 0:00:47]} Kg6 {[%emt 0:01:04]} 33. Kf1 {[%emt 0:00:29]} Rd2 {[%emt 0:00:07]} 34. Nxe4 {[%emt 0:00:45]} Rd4 {[%emt 0:00:13]} 35. Nc5 {[%emt 0:00:18]} Rc4 {[%emt 0:00:34]} 36. Nxa6 {[%emt 0:00:24]} Rxc7 {[%emt 0:00:03]} 37. Nxc7 {[%emt 0:00:05]} Rc8 {[%emt 0:00:07]} 38. Nd5 {[%emt 0:00:16]} Rd8 {[%emt 0:00:32]} 39. Nf4+ {[%emt 0:00:10]} Kf7 {[%emt 0:00:20]} 40. a4 {[%emt 0:00:08]} Ra8 {[%emt 0:00:13]} 41. a5 {[%emt 0:00:02]} Ra7 {[%emt 0:00:12]} 42. a6 {[%emt 0:00:07]} f5 {[%emt 0:00:15]} 43. h4 {[%emt 0:00:13]} Kf6 {[%emt 0:00:45]} 44. h5 {[%emt 0:00:09]} Kg5 {[%emt 0:00:14]} 45. Kg2 {[%emt 0:00:06]} Kh6 {[%emt 0:00:46]} 46. Kh3 {[%emt 0:00:11]} Kg5 {[%emt 0:00:37]} 47. Ra2 {[%emt 0:00:13]} Kh6 {[%emt 0:00:20]} 48. Kh4 {[%emt 0:00:08]} Kg7 {[%emt 0:00:11]} 49. Kg5 {[%emt 0:00:04]} Kh7 {[%emt 0:00:11]} 50. Kxf5 {[%emt 0:00:16]} Kh6 {[%emt 0:00:30]} 51. g4 {[%emt 0:00:13]} Rh7 {[%emt 0:00:12]} 52. a7 {[%emt 0:00:43]} Rxa7 {[%emt 0:00:08]} 53. g5+ {[%emt 0:00:03]} Kg7 {[%emt 0:00:14]} 54. Rxa7+ {[%emt 0:00:04]} Kh8 {[%emt 0:00:04]} 55. Kg6 {[%emt 0:00:05]} Kg8 {[%emt 0:00:08]} 56. Ra8# {[%emt 0:00:06]} 1-0

[Event "DVM U10 2024"]
[Site "Duesseldorf"]
[Date "2024.12.27"]
[Round "2"]
[White "Liu, Jonas"]
[Black "Schmidt, Jan"]
[Result "1-0"]
[ECO "B10"]
[WhiteElo "1690"]
[BlackElo "1688"]
[Annotator "NA RC"]
[PlyCount "65"]
[EventDate "2024.12.23"]
[EventType "team-tourn"]
[EventRounds "7"]
[EventCountry "GER"]
[SourceTitle "playchess.com"]
[Source "ChessBase"]
[SourceQuality "1"]
[TimeControl "3300+5"]

1. e4 {[%emt 0:00:07]} c6 {[%emt 0:00:11]} 2. Nf3 {[%emt 0:00:37]} d5 {[%emt 0:00:13]} 3. exd5 {[%emt 0:00:09]} cxd5 {[%emt 0:00:07]} 4. Ne5 {[%emt 0:00:38]} Nc6 {[%emt 0:00:16]} 5. Bb5 {[%emt 0:00:24]} Bd7 {[%emt 0:00:08]} 6. Bxc6 {[%emt 0:00:08]} Bxc6 {[%emt 0:00:06]} 7. d4 {[%emt 0:00:03]} Nf6 {[%emt 0:00:41]} 8. O-O {[%emt 0:00:39]} e6 {[%emt 0:00:18]} 9. Bf4 {[%emt 0:01:05]} Bd6 {[%emt 0:01:09]} 10. Nd2 {[%emt 0:00:39]} Qc7 {[%emt 0:00:49]} 11. Bg3 {[%emt 0:00:38]} O-O {[%emt 0:00:54]} 12. Re1 {[%emt 0:00:49]} Rac8 {[%emt 0:00:57]} 13. c3 {[%emt 0:00:42]} Nd7 {[%emt 0:12:46]} 14. Ndf3 {[%emt 0:01:02]} Qb6 {[%emt 0:02:13]} 15. Nxd7 {[%emt 0:04:03]} Bxd7 {[%emt 0:00:11]} 16. Bxd6 {[%emt 0:00:06]} Qxd6 {[%emt 0:00:05]} 17. Ng5 {[%emt 0:04:47]} h6 {[%emt 0:00:55]} 18. Nf3 {[%emt 0:00:07]} Qb6 {[%emt 0:01:23]} 19. Qb3 {[%emt 0:01:54]} Qa6 {[%emt 0:01:03]} 20. a4 {[%emt 0:04:23]} Bc6 {[%emt 0:06:35]} 21. h4 {[%emt 0:07:32]} Qd3 {[%emt 0:03:25]} 22. Ne5 {[%emt 0:02:52]} Qd2 {[%emt 0:01:17]} 23. Re3 {[%emt 0:01:16]} Bxa4 {[%emt 0:04:16]} 24. Rxa4 {[%emt 0:02:39]} Qc1+ {[%emt 0:00:09]} 25. Kh2 {[%emt 0:00:10]} Qf1 {[%emt 0:00:11]} 26. Nd3 {[%emt 0:01:22]} b5 {[%emt 0:01:42]} 27. Ra2 {[%emt 0:06:12]} f5 {[%emt 0:07:16]} 28. Qc2 {[%emt 0:01:34]} b4 {[%emt 0:01:00]} 29. Nxb4 {[%emt 0:03:05]} Qc4 {[%emt 0:02:07]} 30. Rxe6 {[%emt 0:00:59]} Qxb4 {[%emt 0:01:00]} 31. Qe2 {[%emt 0:01:46]} Qb8+ {[%emt 0:00:55]} 32. Qe5 {[%emt 0:00:25]} Qb3 {[%emt 0:00:32]} 33. Rxa7 {[%emt 0:00:20]} 1-0

[Event "DVM U10 2024"]
[Site "Duesseldorf"]
[Date "2024.12.27"]
[Round "2"]
[White "Ahmadov, Ahmad"]
[Black "Liu, Yichen"]
[Result "1/2-1/2"]
[ECO "B19"]
[WhiteElo "1663"]
[BlackElo "1500"]
[Annotator "NA RC"]
[PlyCount "71"]
[EventDate "2024.12.23"]
[EventType "team-tourn"]
[EventRounds "7"]
[EventCountry "GER"]
[SourceTitle "playchess.com"]
[Source "ChessBase"]
[SourceQuality "1"]
[TimeControl "3300+5"]

1. e4 {[%emt 0:00:03]} c6 {[%emt 0:00:09]} 2. d4 {[%emt 0:00:11]} d5 {[%emt 0:00:11]} 3. Nc3 {[%emt 0:00:04]} dxe4 {[%emt 0:00:15]} 4. Nxe4 {[%emt 0:00:08]} Bf5 {[%emt 0:00:12]} 5. Ng3 {[%emt 0:00:09]} Bg6 {[%emt 0:00:10]} 6. h4 {[%emt 0:00:03]} h6 {[%emt 0:00:16]} 7. h5 {[%emt 0:00:16]} Bh7 {[%emt 0:00:11]} 8. Nf3 {[%emt 0:00:17]} Nf6 {[%emt 0:00:48]} 9. Ne5 {[%emt 0:00:18]} e6 {[%emt 0:00:44]} 10. Bd3 {[%emt 0:00:19]} Qxd4 {[%emt 0:01:40]} 11. Nxf7 {[%emt 0:00:59]} Rg8 {[%emt 0:01:10]} 12. Bxh7 {[%emt 0:08:53]} Qxd1+ {[%emt 0:00:30]} 13. Kxd1 {[%emt 0:00:13]} Nxh7 {[%emt 0:00:13]} 14. Ne5 {[%emt 0:00:12]} Bd6 {[%emt 0:00:13]} 15. f4 {[%emt 0:01:06]} Nf6 {[%emt 0:00:17]} 16. Be3 {[%emt 0:01:02]} Bxe5 {[%emt 0:00:44]} 17. fxe5 {[%emt 0:00:18]} Ng4 {[%emt 0:00:17]} 18. Re1 {[%emt 0:00:46]} Nxe5 {[%emt 0:01:13]} 19. Bxa7 {[%emt 0:00:34]} Rxa7 {[%emt 0:00:44]} 20. Rxe5 {[%emt 0:00:17]} Ke7 {[%emt 0:01:07]} 21. Ne4 {[%emt 0:00:50]} Nd7 {[%emt 0:00:00]} 22. Rc5 {[%emt 0:01:31]} Nxc5 {[%emt 0:01:39]} 23. Nxc5 {[%emt 0:00:01]} Rf8 {[%emt 0:00:11]} 24. Ke2 {[%emt 0:00:17]} Rf5 {[%emt 0:00:23]} 25. Nd3 {[%emt 0:00:48]} Rxh5 {[%emt 0:00:10]} 26. a3 {[%emt 0:01:07]} Raa5 {[%emt 0:00:12]} 27. Re1 {[%emt 0:00:53]} c5 {[%emt 0:00:23]} 28. Kd2 {[%emt 0:01:02]} Rd5 {[%emt 0:00:22]} 29. Kc1 {[%emt 0:01:33]} c4 {[%emt 0:00:14]} 30. Nf4 {[%emt 0:00:27]} Re5 {[%emt 0:00:15]} 31. Ng6+ {[%emt 0:01:03]} Kf6 {[%emt 0:00:22]} 32. Nxe5 {[%emt 0:00:32]} Rxe5 {[%emt 0:00:07]} 33. Rf1+ {[%emt 0:00:11]} Rf5 {[%emt 0:00:07]} 34. Rd1 {[%emt 0:00:44]} Rd5 {[%emt 0:00:33]} 35. Rf1+ {[%emt 0:00:53]} Rf5 {[%emt 0:00:13]} 36. Rd1 {[%emt 0:00:07]} 1/2-1/2

[Event "DVM U10 2024"]
[Site "Duesseldorf"]
[Date "2024.12.27"]
[Round "2"]
[White "Sauer, Ben"]
[Black "Roppel, Alexander"]
[Result "1-0"]
[ECO "C42"]
[WhiteElo "1645"]
[BlackElo "954"]
[Annotator "NA RC"]
[PlyCount "65"]
[EventDate "2024.12.23"]
[EventType "team-tourn"]
[EventRounds "7"]
[EventCountry "GER"]
[SourceTitle "playchess.com"]
[Source "ChessBase"]
[SourceQuality "1"]
[TimeControl "3300+5"]

1. e4 {[%emt 0:00:01]} e5 {[%emt 0:00:13]} 2. Nf3 {[%emt 0:00:03]} Nf6 {[%emt 0:00:10]} 3. Nxe5 {[%emt 0:00:31]} Qe7 {[%emt 0:00:09]} 4. Nf3 {[%emt 0:00:16]} Nxe4 {[%emt 0:00:07]} 5. Be2 {[%emt 0:00:16]} Qc5 {[%emt 0:00:23]} 6. O-O {[%emt 0:00:36]} Nc6 {[%emt 0:00:26]} 7. d4 {[%emt 0:01:11]} Qh5 {[%emt 0:00:29]} 8. Ng5 {[%emt 0:03:25]} Qg6 {[%emt 0:00:25]} 9. Bh5 {[%emt 0:03:12]} Qf5 {[%emt 0:00:23]} 10. Nxe4 {[%emt 0:00:39]} Qxe4 {[%emt 0:00:10]} 11. Re1 {[%emt 0:00:17]} Qxe1+ {[%emt 0:00:22]} 12. Qxe1+ {[%emt 0:00:05]} Kd8 {[%emt 0:00:11]} 13. Bg5+ {[%emt 0:00:32]} Ne7 {[%emt 0:00:23]} 14. Bxf7 {[%emt 0:00:22]} h6 {[%emt 0:00:15]} 15. Bxe7+ {[%emt 0:00:22]} Bxe7 {[%emt 0:00:08]} 16. Nc3 {[%emt 0:00:25]} Rf8 {[%emt 0:00:12]} 17. Bb3 {[%emt 0:01:44]} Re8 {[%emt 0:00:52]} 18. Qd2 {[%emt 0:00:49]} d6 {[%emt 0:00:32]} 19. Re1 {[%emt 0:00:43]} Bg5 {[%emt 0:00:16]} 20. Rxe8+ {[%emt 0:00:12]} Kxe8 {[%emt 0:00:12]} 21. Qe2+ {[%emt 0:00:15]} Kd8 {[%emt 0:00:18]} 22. Bf7 {[%emt 0:00:18]} Bd7 {[%emt 0:00:20]} 23. Be6 {[%emt 0:00:54]} c6 {[%emt 0:00:30]} 24. d5 {[%emt 0:01:13]} c5 {[%emt 0:00:13]} 25. Bxd7 {[%emt 0:00:43]} Kxd7 {[%emt 0:00:12]} 26. Qe6+ {[%emt 0:00:12]} Kc7 {[%emt 0:00:18]} 27. Nb5+ {[%emt 0:00:28]} Kb6 {[%emt 0:00:11]} 28. Nxd6 {[%emt 0:00:31]} Ka5 {[%emt 0:00:33]} 29. c3 {[%emt 0:01:45]} Rd8 {[%emt 0:00:21]} 30. Nxb7+ {[%emt 0:00:27]} Kb5 {[%emt 0:00:20]} 31. Nxd8 {[%emt 0:00:54]} Bxd8 {[%emt 0:00:13]} 32. b3 {[%emt 0:00:10]} Ba5 {[%emt 0:00:10]} 33. a4# {[%emt 0:00:19]} 1-0

[Event "DVM U10 2024"]
[Site "Duesseldorf"]
[Date "2024.12.27"]
[Round "2"]
[White "Vignesh Bama, Dev"]
[Black "Huang, Flora Yueya"]
[Result "0-1"]
[ECO "B22"]
[WhiteElo "1633"]
[BlackElo "1481"]
[Annotator "NA RC"]
[PlyCount "104"]
[EventDate "2024.12.23"]
[EventType "team-tourn"]
[EventRounds "7"]
[EventCountry "GER"]
[SourceTitle "playchess.com"]
[Source "ChessBase"]
[SourceQuality "1"]
[TimeControl "3300+5"]

1. e4 {[%emt 0:07:49]} c5 2. Nf3 {[%emt 0:00:00]} e6 {[%emt 0:00:12]} 3. c3 {[%emt 0:00:00]} Nc6 {[%emt 0:00:06]} 4. d4 {[%emt 0:00:00]} cxd4 {[%emt 0:00:09]} 5. cxd4 {[%emt 0:00:00]} Nf6 {[%emt 0:00:05]} 6. e5 {[%emt 0:00:00]} Nd5 {[%emt 0:00:09]} 7. Bc4 {[%emt 0:00:00]} Nb6 {[%emt 0:00:11]} 8. Bb3 {[%emt 0:00:00]} d6 {[%emt 0:00:23]} 9. O-O {[%emt 0:00:00]} dxe5 {[%emt 0:00:09]} 10. dxe5 {[%emt 0:00:00]} Qxd1 {[%emt 0:01:01]} 11. Rxd1 {[%emt 0:00:00]} Bc5 {[%emt 0:00:05]} 12. Nc3 {[%emt 0:00:00]} O-O {[%emt 0:00:08]} 13. Bg5 {[%emt 0:00:00]} h6 {[%emt 0:00:15]} 14. Bh4 {[%emt 0:00:00]} Bd7 {[%emt 0:04:23]} 15. Bc2 {[%emt 0:00:00]} Nb4 {[%emt 0:01:16]} 16. Bb3 {[%emt 0:00:00]} Bc6 {[%emt 0:00:25]} 17. Nd4 {[%emt 0:00:04]} Bxd4 {[%emt 0:02:44]} 18. Rxd4 {[%emt 0:00:23]} N4d5 {[%emt 0:00:10]} 19. a4 {[%emt 0:01:06]} Nxc3 {[%emt 0:01:26]} 20. bxc3 {[%emt 0:00:20]} Nd7 {[%emt 0:00:23]} 21. f4 {[%emt 0:00:28]} Rfe8 {[%emt 0:03:33]} 22. Rad1 {[%emt 0:00:32]} Nc5 {[%emt 0:00:54]} 23. Bc2 {[%emt 0:00:41]} Bd5 {[%emt 0:01:58]} 24. Bf2 {[%emt 0:00:32]} b6 {[%emt 0:02:45]} 25. a5 {[%emt 0:00:25]} Bb3 {[%emt 0:01:47]} 26. Bxb3 {[%emt 0:01:03]} Nxb3 {[%emt 0:00:07]} 27. Rb4 {[%emt 0:00:12]} Nxa5 {[%emt 0:00:12]} 28. Ra4 {[%emt 0:03:23]} Rac8 {[%emt 0:00:55]} 29. Rd7 {[%emt 0:02:12]} Rxc3 {[%emt 0:01:56]} 30. Rxa7 {[%emt 0:00:27]} Rc1+ {[%emt 0:00:06]} 31. Be1 {[%emt 0:00:20]} Rxe1+ {[%emt 0:00:07]} 32. Kf2 {[%emt 0:00:27]} Rb1 {[%emt 0:00:37]} 33. Rd4 {[%emt 0:00:36]} Nc6 {[%emt 0:00:16]} 34. Rdd7 {[%emt 0:01:25]} Nxa7 {[%emt 0:00:11]} 35. Rxa7 {[%emt 0:00:07]} b5 {[%emt 0:00:02]} 36. Ke2 {[%emt 0:00:24]} Rd8 {[%emt 0:00:07]} 37. Ra2 {[%emt 0:00:17]} b4 {[%emt 0:00:09]} 38. Rd2 {[%emt 0:00:08]} Rxd2+ {[%emt 0:00:07]} 39. Kxd2 {[%emt 0:00:05]} Rb2+ {[%emt 0:00:38]} 40. Kc1 {[%emt 0:00:06]} Rxg2 {[%emt 0:00:08]} 41. Kb1 {[%emt 0:00:09]} f6 {[%emt 0:00:10]} 42. h3 {[%emt 0:00:33]} fxe5 {[%emt 0:00:07]} 43. fxe5 {[%emt 0:00:12]} Re2 {[%emt 0:00:02]} 44. Kc1 {[%emt 0:00:15]} Rxe5 {[%emt 0:00:10]} 45. Kb2 {[%emt 0:00:08]} Re3 {[%emt 0:00:05]} 46. h4 {[%emt 0:00:05]} e5 {[%emt 0:00:03]} 47. Kc2 {[%emt 0:00:05]} e4 {[%emt 0:00:04]} 48. Kd2 {[%emt 0:00:03]} Rd3+ {[%emt 0:00:04]} 49. Kc2 {[%emt 0:00:13]} b3+ {[%emt 0:00:04]} 50. Kb2 {[%emt 0:00:05]} e3 {[%emt 0:00:05]} 51. Kc1 {[%emt 0:00:03]} Rd2 {[%emt 0:00:17]} 52. Kb1 {[%emt 0:00:11]} e2 {[%emt 0:00:06]} 0-1

[Event "DVM U10 2024"]
[Site "Duesseldorf"]
[Date "2024.12.27"]
[Round "2"]
[White "Zielke, Mika"]
[Black "Wittenberger, Henri"]
[Result "1-0"]
[ECO "C54"]
[WhiteElo "1623"]
[BlackElo "1421"]
[Annotator "NA RC"]
[PlyCount "93"]
[EventDate "2024.12.23"]
[EventType "team-tourn"]
[EventRounds "7"]
[EventCountry "GER"]
[SourceTitle "playchess.com"]
[Source "ChessBase"]
[SourceQuality "1"]
[TimeControl "3300+5"]

1. e4 {[%emt 0:00:02]} e5 {[%emt 0:00:12]} 2. Nf3 {[%emt 0:00:04]} Nc6 {[%emt 0:00:08]} 3. Bc4 {[%emt 0:00:08]} Bc5 {[%emt 0:00:13]} 4. c3 {[%emt 0:00:36]} Nf6 {[%emt 0:00:13]} 5. d3 {[%emt 0:00:08]} d6 {[%emt 0:00:28]} 6. Be3 {[%emt 0:00:17]} Bb6 {[%emt 0:00:18]} 7. O-O {[%emt 0:01:02]} h6 {[%emt 0:02:36]} 8. Nbd2 {[%emt 0:00:39]} O-O {[%emt 0:00:30]} 9. Re1 {[%emt 0:01:27]} Be6 {[%emt 0:02:09]} 10. Bb3 {[%emt 0:01:28]} Re8 {[%emt 0:03:07]} 11. Nf1 {[%emt 0:00:49]} Ne7 {[%emt 0:01:23]} 12. Ng3 {[%emt 0:01:16]} Ng6 {[%emt 0:04:11]} 13. Qc2 {[%emt 0:04:11]} c6 {[%emt 0:05:38]} 14. d4 {[%emt 0:02:55]} Qe7 {[%emt 0:02:11]} 15. Bxe6 {[%emt 0:04:19]} Qxe6 {[%emt 0:03:37]} 16. dxe5 {[%emt 0:02:23]} Nxe5 {[%emt 0:01:24]} 17. Nxe5 {[%emt 0:00:34]} dxe5 {[%emt 0:00:31]} 18. Qb3 {[%emt 0:03:22]} Bxe3 {[%emt 0:03:35]} 19. Rxe3 {[%emt 0:00:47]} Qxb3 {[%emt 0:00:36]} 20. axb3 {[%emt 0:00:08]} a6 {[%emt 0:02:20]} 21. Rd1 {[%emt 0:00:59]} Rad8 {[%emt 0:00:42]} 22. Red3 {[%emt 0:00:48]} Rxd3 {[%emt 0:00:40]} 23. Rxd3 {[%emt 0:00:03]} Re7 {[%emt 0:00:19]} 24. Kf1 {[%emt 0:00:52]} g6 {[%emt 0:00:57]} 25. f3 {[%emt 0:00:49]} Rd7 {[%emt 0:01:40]} 26. Ke2 {[%emt 0:00:00]} Rxd3 {[%emt 0:00:39]} 27. Kxd3 {[%emt 0:00:10]} b5 {[%emt 0:00:14]} 28. c4 {[%emt 0:01:25]} c5 {[%emt 0:01:01]} 29. Nf1 {[%emt 0:01:36]} Kf8 {[%emt 0:01:20]} 30. Ne3 {[%emt 0:00:45]} Ke7 {[%emt 0:00:35]} 31. Nd5+ {[%emt 0:00:51]} Nxd5 {[%emt 0:00:11]} 32. exd5 {[%emt 0:01:45]} Kd6 {[%emt 0:00:34]} 33. h4 {[%emt 0:01:17]} b4 {[%emt 0:01:48]} 34. g4 {[%emt 0:00:28]} f5 {[%emt 0:00:49]} 35. h5 {[%emt 0:06:38]} fxg4 {[%emt 0:01:02]} 36. fxg4 {[%emt 0:00:19]} g5 {[%emt 0:00:28]} 37. Ke4 {[%emt 0:00:11]} a5 {[%emt 0:00:47]} 38. Kf5 {[%emt 0:00:12]} Ke7 {[%emt 0:00:08]} 39. Kxe5 {[%emt 0:00:08]} Kf7 {[%emt 0:00:20]} 40. d6 {[%emt 0:00:15]} Ke8 {[%emt 0:00:15]} 41. Kd5 {[%emt 0:00:08]} Kd7 {[%emt 0:00:07]} 42. Kxc5 {[%emt 0:00:08]} Kd8 {[%emt 0:00:10]} 43. Kd5 {[%emt 0:00:20]} Kd7 {[%emt 0:00:07]} 44. c5 {[%emt 0:00:07]} a4 {[%emt 0:00:22]} 45. bxa4 {[%emt 0:00:11]} Kc8 {[%emt 0:00:02]} 46. c6 {[%emt 0:00:11]} b3 {[%emt 0:00:13]} 47. a5 {[%emt 0:00:07]} 1-0

[Event "DVM U10 2024"]
[Site "Duesseldorf"]
[Date "2024.12.27"]
[Round "2"]
[White "Thirumal, Shravan"]
[Black "Aslanov, Kamran"]
[Result "1-0"]
[ECO "C44"]
[WhiteElo "1614"]
[BlackElo "1451"]
[Annotator "NA RC"]
[PlyCount "57"]
[EventDate "2024.12.23"]
[EventType "team-tourn"]
[EventRounds "7"]
[EventCountry "GER"]
[SourceTitle "playchess.com"]
[Source "ChessBase"]
[SourceQuality "1"]
[TimeControl "3300+5"]

1. e4 {[%emt 0:01:33]} e5 {[%emt 0:00:04]} 2. Nf3 {[%emt 0:00:22]} Nc6 {[%emt 0:00:11]} 3. d4 {[%emt 0:00:31]} exd4 {[%emt 0:03:28]} 4. Bc4 {[%emt 0:00:01]} d6 {[%emt 0:02:11]} 5. O-O {[%emt 0:00:07]} Bg4 {[%emt 0:00:44]} 6. h3 {[%emt 0:01:09]} Bh5 {[%emt 0:00:00]} 7. g4 {[%emt 0:00:55]} Bg6 {[%emt 0:00:00]} 8. Nxd4 {[%emt 0:00:50]} Nxd4 {[%emt 0:00:28]} 9. Qxd4 {[%emt 0:00:04]} Nf6 {[%emt 0:00:28]} 10. Nc3 {[%emt 0:00:44]} Be7 {[%emt 0:01:02]} 11. g5 {[%emt 0:02:08]} Nd7 {[%emt 0:00:33]} 12. Qxg7 {[%emt 0:00:07]} Rf8 {[%emt 0:01:10]} 13. f4 {[%emt 0:00:57]} f5 {[%emt 0:05:51]} 14. Be6 {[%emt 0:04:00]} fxe4 {[%emt 0:01:45]} 15. f5 {[%emt 0:05:48]} Bf7 {[%emt 0:08:09]} 16. Bxf7+ {[%emt 0:03:53]} Rxf7 {[%emt 0:00:26]} 17. Qg8+ {[%emt 0:00:18]} Rf8 {[%emt 0:04:03]} 18. Qxh7 {[%emt 0:00:04]} Bxg5 {[%emt 0:01:56]} 19. Qh5+ {[%emt 0:00:26]} Rf7 {[%emt 0:02:13]} 20. Bxg5 {[%emt 0:00:03]} Nf6 {[%emt 0:00:43]} 21. Nxe4 {[%emt 0:00:41]} Nxh5 {[%emt 0:03:03]} 22. Bxd8 {[%emt 0:01:01]} Rxd8 {[%emt 0:00:24]} 23. Rae1 {[%emt 0:00:15]} Kf8 {[%emt 0:00:40]} 24. Ng5 {[%emt 0:00:55]} Rg7 {[%emt 0:01:03]} 25. h4 {[%emt 0:00:26]} Kg8 {[%emt 0:02:00]} 26. f6 {[%emt 0:03:52]} Rg6 {[%emt 0:01:03]} 27. f7+ {[%emt 0:00:19]} Kf8 {[%emt 0:00:27]} 28. Kh2 {[%emt 0:03:42]} Ng7 {[%emt 0:01:04]} 29. Nh7# {[%emt 0:00:45]} 1-0